[Event "Titled Tuesday Blitz November 01 Late 2022"]
[White "Chigaev, Maksim"]
[Black "Kleiman, Jake"]
[WhiteFideId "4108116"]
[BlackFideId "2020041"]
[WhiteElo "2537"]
[BlackElo "2650"]
[Result "1-0"]
[Round "10"]
[TimeControl "180+1"]
[Date "2022.11.01"]
[WhiteClock "0:00:05"]
[BlackClock "0:00:03"]

1. Nf3 {[%clk 0:03:00]}  Nf6 {[%clk 0:03:00]} 2. c4 {[%clk 0:03:00]}  e6 {[%clk 0:03:01]} 3. g3 {[%clk 0:03:00]}  d5 {[%clk 0:03:01]} 4. Bg2 {[%clk 0:03:01]}  dxc4 {[%clk 0:03:01]} 5. O-O {[%clk 0:03:01]}  a6 {[%clk 0:03:02]} 6. Qc2 {[%clk 0:02:59]}  b5 {[%clk 0:02:58]} 7. Ne5 {[%clk 0:02:58]}  Nd5 {[%clk 0:02:57]} 8. d3 {[%clk 0:02:58]}  cxd3 {[%clk 0:02:56]} 9. Nxd3 {[%clk 0:02:58]}  Bb7 {[%clk 0:02:52]} 10. Rd1 {[%clk 0:02:59]}  Nd7 {[%clk 0:02:49]} 11. e4 {[%clk 0:02:51]}  N5b6 {[%clk 0:02:33]} 12. Nc3 {[%clk 0:02:31]}  Be7 {[%clk 0:02:19]} 13. a4 {[%clk 0:02:29]}  b4 {[%clk 0:02:12]} 14. Ne2 {[%clk 0:02:16]}  a5 {[%clk 0:02:06]} 15. Bf4 {[%clk 0:02:10]}  c5 {[%clk 0:01:58]} 16. Ne5 {[%clk 0:01:51]}  Qc8 {[%clk 0:01:59]} 17. Nxd7 {[%clk 0:01:45]}  Nxd7 {[%clk 0:02:00]} 18. Bd6 {[%clk 0:01:38]}  Bxd6 {[%clk 0:01:55]} 19. Rxd6 {[%clk 0:01:39]}  O-O {[%clk 0:01:48]} 20. Rad1 {[%clk 0:01:39]}  Nf6 {[%clk 0:01:20]} 21. Nf4 {[%clk 0:01:19]}  Ra6 {[%clk 0:01:00]} 22. R6d2 {[%clk 0:01:08]}  e5 {[%clk 0:00:27]} 23. Nd3 {[%clk 0:01:00]}  Nxe4 {[%clk 0:00:26]} 24. Re2 {[%clk 0:00:56]}  Ng5 {[%clk 0:00:23]} 25. Nxe5 {[%clk 0:00:39]}  Bxg2 {[%clk 0:00:19]} 26. Kxg2 {[%clk 0:00:39]}  Qh3+ {[%clk 0:00:18]} 27. Kh1 {[%clk 0:00:18]}  Re6 {[%clk 0:00:17]} 28. f4 {[%clk 0:00:18]}  f6 {[%clk 0:00:12]} 29. Nd7 {[%clk 0:00:06]}  Rxe2 {[%clk 0:00:08]} 30. Qxe2 {[%clk 0:00:07]}  Rd8 {[%clk 0:00:08]} 31. fxg5 {[%clk 0:00:07]}  fxg5 {[%clk 0:00:07]} 32. Nf6+ {[%clk 0:00:05]}  Kf7 {[%clk 0:00:05]} 33. Rxd8 {[%clk 0:00:05]}  gxf6 {[%clk 0:00:05]} 34. Rd1 {[%clk 0:00:03]}  Kg7 {[%clk 0:00:04]} 35. Rf1 {[%clk 0:00:03]}  Qd7 {[%clk 0:00:04]} 36. Qf3 {[%clk 0:00:03]}  Qd6 {[%clk 0:00:03]} 37. b3 {[%clk 0:00:03]}  Qe5 {[%clk 0:00:03]} 38. Qf5 {[%clk 0:00:03]}  Qe7 {[%clk 0:00:03]} 39. Kg2 {[%clk 0:00:04]}  h5 {[%clk 0:00:03]} 40. h3 {[%clk 0:00:04]}  Qd8 {[%clk 0:00:02]} 41. Kh2 {[%clk 0:00:04]}  Qd2+ {[%clk 0:00:02]} 42. Rf2 {[%clk 0:00:05]}  Qd6 {[%clk 0:00:03]} 43. Kg2 {[%clk 0:00:04]}  Qe7 {[%clk 0:00:03]} 44. Qf3 {[%clk 0:00:04]}  Kg6 {[%clk 0:00:02]} 45. Re2 {[%clk 0:00:04]}  Qd7 {[%clk 0:00:03]} 46. Qe4+ {[%clk 0:00:04]}  Kh6 {[%clk 0:00:02]} 47. g4 {[%clk 0:00:05]}  h4 {[%clk 0:00:02]} 48. Rf2 {[%clk 0:00:05]}  Qd6 {[%clk 0:00:02]} 49. Qf3 {[%clk 0:00:06]}  Kg7 {[%clk 0:00:02]} 50. Re2 {[%clk 0:00:06]}  Qc7 {[%clk 0:00:02]} 51. Qe3 {[%clk 0:00:06]}  Kh6 {[%clk 0:00:01]} 52. Kf2 {[%clk 0:00:05]}  Qh2+ {[%clk 0:00:01]} 53. Ke1 {[%clk 0:00:06]}  Qh1+ {[%clk 0:00:01]} 54. Kd2 {[%clk 0:00:06]}  Qd5+ {[%clk 0:00:02]} 55. Qd3 {[%clk 0:00:06]}  Qc6 {[%clk 0:00:02]} 56. Rf2 {[%clk 0:00:06]}  Qb6 {[%clk 0:00:01]} 57. Qf3 {[%clk 0:00:04]}  Kg7 {[%clk 0:00:02]} 58. Kc2 {[%clk 0:00:05]}  Qe6 {[%clk 0:00:02]} 59. Qd3 {[%clk 0:00:04]}  Qc6 {[%clk 0:00:03]} 60. Re2 {[%clk 0:00:05]}  Qh1 {[%clk 0:00:02]} 61. Re7+ {[%clk 0:00:05]}  Kh6 {[%clk 0:00:03]} 62. Qh7# {[%clk 0:00:05]} 1-0


[Site "https://www.chess.com"]

[Event "Titled Tuesday Blitz November 01 Late 2022"]
[White "Diaz Rosas, Julio Cesar"]
[Black "Putnam, Liam"]
[WhiteFideId "5105099"]
[BlackFideId "30938279"]
[WhiteElo "2246"]
[BlackElo "2082"]
[Result "1/2-1/2"]
[Round "10"]
[TimeControl "180+1"]
[Date "2022.11.02"]
[WhiteClock "0:00:03"]
[BlackClock "0:01:01"]

1. e4 {[%clk 0:02:59]}  g6 {[%clk 0:02:58]} 2. d4 {[%clk 0:02:58]}  Bg7 {[%clk 0:02:59]} 3. Nc3 {[%clk 0:02:58]}  a6 {[%clk 0:02:59]} 4. a4 {[%clk 0:02:56]}  d6 {[%clk 0:02:59]} 5. Nf3 {[%clk 0:02:54]}  Bg4 {[%clk 0:02:58]} 6. Be2 {[%clk 0:02:51]}  Nc6 {[%clk 0:02:58]} 7. Be3 {[%clk 0:02:49]}  e5 {[%clk 0:02:58]} 8. dxe5 {[%clk 0:02:42]}  dxe5 {[%clk 0:02:40]} 9. Nd5 {[%clk 0:02:39]}  Nf6 {[%clk 0:02:37]} 10. Bg5 {[%clk 0:02:39]}  h6 {[%clk 0:02:22]} 11. Nxf6+ {[%clk 0:01:47]}  Bxf6 {[%clk 0:02:23]} 12. Qxd8+ {[%clk 0:01:47]}  Bxd8 {[%clk 0:02:24]} 13. Be3 {[%clk 0:01:46]}  Be7 {[%clk 0:02:14]} 14. c3 {[%clk 0:01:43]}  Bd6 {[%clk 0:02:14]} 15. Nd2 {[%clk 0:01:36]}  Bxe2 {[%clk 0:02:10]} 16. Kxe2 {[%clk 0:01:37]}  Ke7 {[%clk 0:02:09]} 17. Rhd1 {[%clk 0:01:32]}  Ke6 {[%clk 0:02:09]} 18. b4 {[%clk 0:01:25]}  f5 {[%clk 0:02:08]} 19. f3 {[%clk 0:01:24]}  f4 {[%clk 0:01:56]} 20. Bf2 {[%clk 0:01:22]}  g5 {[%clk 0:01:57]} 21. h3 {[%clk 0:01:18]}  h5 {[%clk 0:01:56]} 22. Nb3 {[%clk 0:01:10]}  b6 {[%clk 0:01:53]} 23. a5 {[%clk 0:01:03]}  b5 {[%clk 0:01:47]} 24. Bc5 {[%clk 0:00:42]}  Rag8 {[%clk 0:01:46]} 25. Kf2 {[%clk 0:00:39]}  g4 {[%clk 0:01:46]} 26. hxg4 {[%clk 0:00:39]}  hxg4 {[%clk 0:01:46]} 27. Rh1 {[%clk 0:00:39]}  g3+ {[%clk 0:01:44]} 28. Ke2 {[%clk 0:00:35]}  Ne7 {[%clk 0:01:45]} 29. Rxh8 {[%clk 0:00:13]}  Rxh8 {[%clk 0:01:45]} 30. Bg1 {[%clk 0:00:14]}  Ng6 {[%clk 0:01:43]} 31. Kf1 {[%clk 0:00:13]}  Rh1 {[%clk 0:01:41]} 32. Rd1 {[%clk 0:00:12]}  Nh4 {[%clk 0:01:40]} 33. Rd2 {[%clk 0:00:12]}  Rh2 {[%clk 0:01:37]} 34. Re2 {[%clk 0:00:11]}  Rh1 {[%clk 0:01:37]} 35. Rd2 {[%clk 0:00:12]}  c6 {[%clk 0:01:36]} 36. Re2 {[%clk 0:00:11]}  Be7 {[%clk 0:01:36]} 37. Rd2 {[%clk 0:00:11]}  Bd6 {[%clk 0:01:36]} 38. Re2 {[%clk 0:00:12]}  Ke7 {[%clk 0:01:36]} 39. Rd2 {[%clk 0:00:12]}  Ng6 {[%clk 0:01:35]} 40. Re2 {[%clk 0:00:12]}  Nf8 {[%clk 0:01:35]} 41. Rd2 {[%clk 0:00:12]}  Ne6 {[%clk 0:01:36]} 42. Rd1 {[%clk 0:00:12]}  Bb8 {[%clk 0:01:36]} 43. Ke2 {[%clk 0:00:12]}  Kf6 {[%clk 0:01:34]} 44. Rf1 {[%clk 0:00:10]}  Bc7 {[%clk 0:01:32]} 45. Re1 {[%clk 0:00:09]}  Bd6 {[%clk 0:01:32]} 46. Rd1 {[%clk 0:00:09]}  Be7 {[%clk 0:01:32]} 47. Rf1 {[%clk 0:00:09]}  Rh8 {[%clk 0:01:29]} 48. Rd1 {[%clk 0:00:08]}  Rd8 {[%clk 0:01:29]} 49. Rxd8 {[%clk 0:00:08]}  Bxd8 {[%clk 0:01:30]} 50. Nc5 {[%clk 0:00:08]}  Nxc5 {[%clk 0:01:30]} 51. Bxc5 {[%clk 0:00:09]}  Ke6 {[%clk 0:01:29]} 52. Kd3 {[%clk 0:00:09]}  Be7 {[%clk 0:01:29]} 53. Bb6 {[%clk 0:00:09]}  Kd7 {[%clk 0:01:28]} 54. Ba7 {[%clk 0:00:09]}  c5 {[%clk 0:01:26]} 55. bxc5 {[%clk 0:00:04]}  Kc6 {[%clk 0:01:26]} 56. c4 {[%clk 0:00:04]}  Bxc5 {[%clk 0:01:21]} 57. cxb5+ {[%clk 0:00:05]}  Kxb5 {[%clk 0:01:21]} 58. Bb8 {[%clk 0:00:03]}  Bd4 {[%clk 0:01:22]} 59. Bc7 {[%clk 0:00:03]}  Kc6 {[%clk 0:01:21]} 60. Bb8 {[%clk 0:00:03]}  Ba1 {[%clk 0:01:16]} 61. Kc4 {[%clk 0:00:03]}  Bd4 {[%clk 0:01:15]} 62. Kb4 {[%clk 0:00:02]}  Kb7 {[%clk 0:01:12]} 63. Bd6 {[%clk 0:00:01]}  Ba1 {[%clk 0:01:11]} 64. Bf8 {[%clk 0:00:02]}  Kc6 {[%clk 0:01:10]} 65. Be7 {[%clk 0:00:02]}  Bb2 {[%clk 0:01:10]} 66. Kc4 {[%clk 0:00:02]}  Bc1 {[%clk 0:01:09]} 67. Bb4 {[%clk 0:00:03]}  Be3 {[%clk 0:01:08]} 68. Bc3 {[%clk 0:00:03]}  Kd6 {[%clk 0:01:09]} 69. Bb4+ {[%clk 0:00:03]}  Ke6 {[%clk 0:01:08]} 70. Bc3 {[%clk 0:00:03]}  Ba7 {[%clk 0:01:07]} 71. Bb4 {[%clk 0:00:04]}  Bd4 {[%clk 0:01:05]} 72. Bc5 {[%clk 0:00:04]}  Bb2 {[%clk 0:01:04]} 73. Bb4 {[%clk 0:00:04]}  Bd4 {[%clk 0:01:04]} 74. Bc5 {[%clk 0:00:04]}  Bb2 {[%clk 0:01:02]} 75. Bg1 {[%clk 0:00:04]}  Ba3 {[%clk 0:01:02]} 76. Bb6 {[%clk 0:00:03]}  Kd6 {[%clk 0:01:02]} 77. Ba7 {[%clk 0:00:03]}  Kc6 {[%clk 0:01:02]} 78. Bb8 {[%clk 0:00:03]}  Bd6 {[%clk 0:01:02]} 79. Ba7 {[%clk 0:00:03]}  Bc7 {[%clk 0:01:02]} 80. Kb4 {[%clk 0:00:03]}  Kb7 {[%clk 0:01:02]} 81. Bc5 {[%clk 0:00:02]}  Kc6 {[%clk 0:01:02]} 82. Ba7 {[%clk 0:00:02]}  Bd6+ {[%clk 0:01:01]} 83. Kc4 {[%clk 0:00:03]}  Bc7 {[%clk 0:01:01]} 84. Kb4 {[%clk 0:00:03]} 1/2-1/2


[Site "https://www.chess.com"]

[Event "Titled Tuesday Blitz November 01 Late 2022"]
[White "Do Nascimento,Christian Almeida"]
[Black "chess50years"]
[WhiteFideId "2143801"]
[WhiteElo "2079"]
[BlackElo "2104"]
[Result "1-0"]
[Round "10"]
[TimeControl "180+1"]
[Date "2022.11.02"]
[WhiteClock "0:00:37"]
[BlackClock "0:00:01"]

1. d4 {[%clk 0:03:00]}  Nf6 {[%clk 0:02:56]} 2. Bg5 {[%clk 0:02:58]}  d5 {[%clk 0:02:54]} 3. Bxf6 {[%clk 0:02:58]}  gxf6 {[%clk 0:02:54]} 4. c4 {[%clk 0:02:58]}  c6 {[%clk 0:02:53]} 5. e3 {[%clk 0:02:58]}  Bf5 {[%clk 0:02:51]} 6. Nc3 {[%clk 0:02:58]}  e6 {[%clk 0:02:50]} 7. Nf3 {[%clk 0:02:58]}  Nd7 {[%clk 0:02:46]} 8. Bd3 {[%clk 0:02:57]}  Bg6 {[%clk 0:02:44]} 9. O-O {[%clk 0:02:56]}  Bd6 {[%clk 0:02:40]} 10. e4 {[%clk 0:02:51]}  dxc4 {[%clk 0:02:27]} 11. Bxc4 {[%clk 0:02:50]}  O-O {[%clk 0:02:20]} 12. Bb3 {[%clk 0:02:38]}  a5 {[%clk 0:02:08]} 13. a3 {[%clk 0:02:34]}  Nb6 {[%clk 0:02:05]} 14. Qe2 {[%clk 0:02:31]}  a4 {[%clk 0:02:04]} 15. Ba2 {[%clk 0:02:30]}  Be7 {[%clk 0:02:01]} 16. Rad1 {[%clk 0:02:29]}  Qc7 {[%clk 0:02:00]} 17. d5 {[%clk 0:02:26]}  e5 {[%clk 0:01:51]} 18. Nh4 {[%clk 0:02:19]}  Rfd8 {[%clk 0:01:46]} 19. Nxg6 {[%clk 0:02:15]}  hxg6 {[%clk 0:01:45]} 20. Qg4 {[%clk 0:02:11]}  Kg7 {[%clk 0:01:42]} 21. Rd3 {[%clk 0:01:58]}  cxd5 {[%clk 0:01:39]} 22. Bxd5 {[%clk 0:01:49]}  Rac8 {[%clk 0:01:06]} 23. Rfd1 {[%clk 0:01:41]}  Bf8 {[%clk 0:00:59]} 24. h4 {[%clk 0:01:38]}  Bc5 {[%clk 0:00:42]} 25. h5 {[%clk 0:01:30]}  Rh8 {[%clk 0:00:41]} 26. hxg6 {[%clk 0:01:26]}  fxg6 {[%clk 0:00:39]} 27. Bxb7 {[%clk 0:01:15]}  Rcd8 {[%clk 0:00:29]} 28. Rxd8 {[%clk 0:01:13]}  Rxd8 {[%clk 0:00:29]} 29. Rxd8 {[%clk 0:01:13]}  Qxd8 {[%clk 0:00:29]} 30. Bd5 {[%clk 0:01:12]}  Qc7 {[%clk 0:00:15]} 31. Qe6 {[%clk 0:01:10]}  Qe7 {[%clk 0:00:12]} 32. Qg8+ {[%clk 0:01:08]}  Kh6 {[%clk 0:00:10]} 33. g3 {[%clk 0:01:03]}  Qg7 {[%clk 0:00:08]} 34. Qe6 {[%clk 0:01:01]}  Qe7 {[%clk 0:00:06]} 35. Qc6 {[%clk 0:01:00]}  Kg7 {[%clk 0:00:05]} 36. Kg2 {[%clk 0:01:00]}  Bd4 {[%clk 0:00:04]} 37. Nxa4 {[%clk 0:00:50]}  Nxd5 {[%clk 0:00:04]} 38. exd5 {[%clk 0:00:48]}  Qa7 {[%clk 0:00:03]} 39. d6 {[%clk 0:00:45]}  Bxf2 {[%clk 0:00:01]} 40. Qc7+ {[%clk 0:00:37]} 1-0


[Site "https://www.chess.com"]

[Event "Titled Tuesday Blitz November 01 Late 2022"]
[White "Dzierzak, Radoslaw"]
[Black "Hua, Lefong"]
[WhiteFideId "1161407"]
[BlackFideId "2602253"]
[WhiteElo "2111"]
[BlackElo "2583"]
[Result "1/2-1/2"]
[Round "10"]
[TimeControl "180+1"]
[Date "2022.11.02"]
[WhiteClock "0:00:27"]
[BlackClock "0:00:52"]

1. e4 {[%clk 0:03:00]}  c5 {[%clk 0:02:59]} 2. Nf3 {[%clk 0:03:01]}  g6 {[%clk 0:02:59]} 3. Bc4 {[%clk 0:02:59]}  Bg7 {[%clk 0:02:58]} 4. c3 {[%clk 0:02:59]}  e6 {[%clk 0:02:58]} 5. d4 {[%clk 0:02:59]}  cxd4 {[%clk 0:02:58]} 6. Nxd4 {[%clk 0:02:59]}  d5 {[%clk 0:02:56]} 7. exd5 {[%clk 0:02:58]}  exd5 {[%clk 0:02:57]} 8. Bb5+ {[%clk 0:02:58]}  Bd7 {[%clk 0:02:56]} 9. Qe2+ {[%clk 0:02:58]}  Qe7 {[%clk 0:02:53]} 10. Bxd7+ {[%clk 0:02:28]}  Nxd7 {[%clk 0:02:51]} 11. Nb5 {[%clk 0:02:29]}  Qxe2+ {[%clk 0:02:42]} 12. Kxe2 {[%clk 0:02:28]}  Be5 {[%clk 0:02:42]} 13. f4 {[%clk 0:02:24]}  Bb8 {[%clk 0:02:41]} 14. Be3 {[%clk 0:02:23]}  a6 {[%clk 0:02:40]} 15. Nd4 {[%clk 0:02:13]}  Ngf6 {[%clk 0:02:39]} 16. Nd2 {[%clk 0:02:12]}  O-O {[%clk 0:02:37]} 17. Rhe1 {[%clk 0:02:07]}  Re8 {[%clk 0:02:34]} 18. Kf3 {[%clk 0:02:02]}  Ne4 {[%clk 0:02:28]} 19. Rad1 {[%clk 0:01:41]}  Ba7 {[%clk 0:02:17]} 20. Nc2 {[%clk 0:01:38]}  Nxd2+ {[%clk 0:02:02]} 21. Rxd2 {[%clk 0:01:35]}  Bxe3 {[%clk 0:01:59]} 22. Nxe3 {[%clk 0:01:33]}  Nf6 {[%clk 0:01:56]} 23. Red1 {[%clk 0:01:19]}  Kg7 {[%clk 0:01:48]} 24. Nxd5 {[%clk 0:01:18]}  Nxd5 {[%clk 0:01:48]} 25. Rxd5 {[%clk 0:01:18]}  Re7 {[%clk 0:01:49]} 26. Rd7 {[%clk 0:01:18]}  Rae8 {[%clk 0:01:46]} 27. Rxe7 {[%clk 0:01:17]}  Rxe7 {[%clk 0:01:47]} 28. Rd6 {[%clk 0:01:17]}  h5 {[%clk 0:01:44]} 29. c4 {[%clk 0:01:09]}  Rc7 {[%clk 0:01:43]} 30. b3 {[%clk 0:01:09]}  b5 {[%clk 0:01:38]} 31. cxb5 {[%clk 0:01:03]}  axb5 {[%clk 0:01:39]} 32. Rb6 {[%clk 0:01:02]}  Rc2 {[%clk 0:01:38]} 33. Rxb5 {[%clk 0:01:01]}  Rxa2 {[%clk 0:01:38]} 34. Rb6 {[%clk 0:00:59]}  Rb2 {[%clk 0:01:35]} 35. h4 {[%clk 0:00:58]}  Kf8 {[%clk 0:01:34]} 36. Rb7 {[%clk 0:00:57]}  Ke8 {[%clk 0:01:34]} 37. g3 {[%clk 0:00:56]}  Kf8 {[%clk 0:01:34]} 38. g4 {[%clk 0:00:51]}  hxg4+ {[%clk 0:01:33]} 39. Kxg4 {[%clk 0:00:52]}  Rg2+ {[%clk 0:01:30]} 40. Kf3 {[%clk 0:00:51]}  Rb2 {[%clk 0:01:29]} 41. f5 {[%clk 0:00:46]}  gxf5 {[%clk 0:01:28]} 42. Kf4 {[%clk 0:00:42]}  Rf2+ {[%clk 0:01:23]} 43. Kg5 {[%clk 0:00:42]}  Kg7 {[%clk 0:01:23]} 44. h5 {[%clk 0:00:41]}  Rg2+ {[%clk 0:01:15]} 45. Kxf5 {[%clk 0:00:38]}  Rh2 {[%clk 0:01:15]} 46. h6+ {[%clk 0:00:28]}  Rxh6 {[%clk 0:01:08]} 47. b4 {[%clk 0:00:28]}  Kf8 {[%clk 0:00:59]} 48. b5 {[%clk 0:00:27]}  Ke8 {[%clk 0:01:00]} 49. b6 {[%clk 0:00:27]}  Kd8 {[%clk 0:00:54]} 50. Ke5 {[%clk 0:00:28]}  Kc8 {[%clk 0:00:52]} 51. Rc7+ {[%clk 0:00:25]}  Kb8 {[%clk 0:00:52]} 52. Rxf7 {[%clk 0:00:25]}  Rxb6 {[%clk 0:00:52]} 53. Rf6 {[%clk 0:00:26]}  Rxf6 {[%clk 0:00:52]} 54. Kxf6 {[%clk 0:00:27]} 1/2-1/2


[Site "https://www.chess.com"]

[Event "Titled Tuesday Blitz November 01 Late 2022"]
[White "Fernandez Guillen, Ernesto J."]
[Black "Svane, Rasmus"]
[WhiteFideId "3512428"]
[BlackFideId "4657101"]
[WhiteElo "2422"]
[BlackElo "2674"]
[Result "0-1"]
[Round "10"]
[TimeControl "180+1"]
[Date "2022.11.01"]
[WhiteClock "0:00:04"]
[BlackClock "0:00:06"]

1. e4 {[%clk 0:03:00]}  c6 {[%clk 0:02:59]} 2. d4 {[%clk 0:02:58]}  d5 {[%clk 0:03:00]} 3. e5 {[%clk 0:02:57]}  Bf5 {[%clk 0:03:00]} 4. c3 {[%clk 0:02:53]}  e6 {[%clk 0:03:01]} 5. Bd3 {[%clk 0:02:48]}  Bxd3 {[%clk 0:02:50]} 6. Qxd3 {[%clk 0:02:48]}  Qb6 {[%clk 0:02:50]} 7. Ne2 {[%clk 0:02:47]}  Qa6 {[%clk 0:02:48]} 8. Qd1 {[%clk 0:02:48]}  c5 {[%clk 0:02:48]} 9. O-O {[%clk 0:02:48]}  Nc6 {[%clk 0:02:48]} 10. Nd2 {[%clk 0:02:47]}  cxd4 {[%clk 0:02:47]} 11. cxd4 {[%clk 0:02:47]}  Nge7 {[%clk 0:02:48]} 12. Nf3 {[%clk 0:02:44]}  Rc8 {[%clk 0:02:36]} 13. a3 {[%clk 0:02:23]}  Rc7 {[%clk 0:02:33]} 14. Be3 {[%clk 0:02:21]}  Nf5 {[%clk 0:02:29]} 15. g4 {[%clk 0:02:17]}  Nxe3 {[%clk 0:02:27]} 16. fxe3 {[%clk 0:02:18]}  Be7 {[%clk 0:02:28]} 17. Ng3 {[%clk 0:02:11]}  O-O {[%clk 0:02:28]} 18. Rc1 {[%clk 0:01:47]}  f6 {[%clk 0:02:27]} 19. exf6 {[%clk 0:01:46]}  Bxf6 {[%clk 0:02:27]} 20. Nh5 {[%clk 0:01:45]}  Rcf7 {[%clk 0:02:25]} 21. Rc2 {[%clk 0:01:39]}  Bg5 {[%clk 0:02:19]} 22. Kg2 {[%clk 0:01:23]}  Bxe3 {[%clk 0:02:07]} 23. Re2 {[%clk 0:01:23]}  Bxd4 {[%clk 0:01:35]} 24. Rxe6 {[%clk 0:01:12]}  Qb5 {[%clk 0:01:32]} 25. b4 {[%clk 0:00:57]}  Bb6 {[%clk 0:01:26]} 26. Ng3 {[%clk 0:00:41]}  Qc4 {[%clk 0:01:12]} 27. h3 {[%clk 0:00:16]}  Nd4 {[%clk 0:01:12]} 28. Nxd4 {[%clk 0:00:14]}  Rxf1 {[%clk 0:01:12]} 29. Nxf1 {[%clk 0:00:15]}  Bxd4 {[%clk 0:01:13]} 30. Re2 {[%clk 0:00:15]}  Bb6 {[%clk 0:01:02]} 31. Ng3 {[%clk 0:00:14]}  g6 {[%clk 0:00:54]} 32. Qe1 {[%clk 0:00:10]}  Qf4 {[%clk 0:00:49]} 33. Re8 {[%clk 0:00:08]}  Qf3+ {[%clk 0:00:41]} 34. Kh2 {[%clk 0:00:08]}  Qf2+ {[%clk 0:00:27]} 35. Qxf2 {[%clk 0:00:08]}  Bxf2 {[%clk 0:00:27]} 36. Re7 {[%clk 0:00:08]}  Rf7 {[%clk 0:00:25]} 37. Re8+ {[%clk 0:00:07]}  Kg7 {[%clk 0:00:24]} 38. Rd8 {[%clk 0:00:08]}  Rf3 {[%clk 0:00:24]} 39. Ne2 {[%clk 0:00:04]}  Rxa3 {[%clk 0:00:20]} 40. Rxd5 {[%clk 0:00:04]}  Ra2 {[%clk 0:00:19]} 41. Rd7+ {[%clk 0:00:03]}  Kf6 {[%clk 0:00:19]} 42. Nf4 {[%clk 0:00:02]}  b5 {[%clk 0:00:14]} 43. Kg2 {[%clk 0:00:02]}  Be3+ {[%clk 0:00:13]} 44. Kf3 {[%clk 0:00:03]}  Bxf4 {[%clk 0:00:14]} 45. Kxf4 {[%clk 0:00:03]}  Ra4 {[%clk 0:00:15]} 46. Rxh7 {[%clk 0:00:01]}  Rxb4+ {[%clk 0:00:15]} 47. Kg3 {[%clk 0:00:02]}  a5 {[%clk 0:00:14]} 48. h4 {[%clk 0:00:02]}  a4 {[%clk 0:00:13]} 49. Ra7 {[%clk 0:00:03]}  Rb3+ {[%clk 0:00:13]} 50. Kf4 {[%clk 0:00:04]}  Rb4+ {[%clk 0:00:12]} 51. Kf3 {[%clk 0:00:04]}  Ke5 {[%clk 0:00:12]} 52. h5 {[%clk 0:00:03]}  gxh5 {[%clk 0:00:13]} 53. gxh5 {[%clk 0:00:04]}  Kd4 {[%clk 0:00:09]} 54. h6 {[%clk 0:00:03]}  Kc3 {[%clk 0:00:10]} 55. h7 {[%clk 0:00:03]}  Rh4 {[%clk 0:00:10]} 56. Kg3 {[%clk 0:00:04]}  Rh1 {[%clk 0:00:10]} 57. Kg4 {[%clk 0:00:04]}  Kb3 {[%clk 0:00:06]} 58. Kg5 {[%clk 0:00:05]}  a3 {[%clk 0:00:06]} 59. Kg6 {[%clk 0:00:05]}  a2 {[%clk 0:00:06]} 60. Kg7 {[%clk 0:00:05]}  b4 {[%clk 0:00:07]} 61. Kg6 {[%clk 0:00:05]}  Kb2 {[%clk 0:00:05]} 62. Ra4 {[%clk 0:00:05]}  b3 {[%clk 0:00:05]} 63. Ra7 {[%clk 0:00:05]}  Rxh7 {[%clk 0:00:04]} 64. Kxh7 {[%clk 0:00:04]}  a1=Q {[%clk 0:00:05]} 65. Rxa1 {[%clk 0:00:04]}  Kxa1 {[%clk 0:00:06]} 0-1


[Site "https://www.chess.com"]

[Event "Titled Tuesday Blitz November 01 Late 2022"]
[White "Firouzja, Alireza"]
[Black "Martinez Alcantara, Jose Eduardo"]
[WhiteFideId "12573981"]
[BlackFideId "3805662"]
[WhiteElo "2903"]
[BlackElo "2703"]
[Result "1-0"]
[Round "10"]
[TimeControl "180+1"]
[Date "2022.11.01"]
[WhiteClock "0:00:07"]
[BlackClock "0:00:01"]

1. e4 {[%clk 0:03:00]}  e5 {[%clk 0:03:00]} 2. Nf3 {[%clk 0:03:00]}  Nf6 {[%clk 0:03:01]} 3. Nxe5 {[%clk 0:03:00]}  d6 {[%clk 0:03:01]} 4. Nf3 {[%clk 0:03:01]}  Nxe4 {[%clk 0:03:02]} 5. d4 {[%clk 0:03:01]}  Be7 {[%clk 0:03:02]} 6. Bd3 {[%clk 0:03:01]}  Nf6 {[%clk 0:03:03]} 7. O-O {[%clk 0:03:02]}  O-O {[%clk 0:03:03]} 8. h3 {[%clk 0:03:01]}  b6 {[%clk 0:03:02]} 9. Re1 {[%clk 0:03:01]}  Bb7 {[%clk 0:03:02]} 10. c4 {[%clk 0:02:59]}  Nbd7 {[%clk 0:03:02]} 11. Nc3 {[%clk 0:02:59]}  Re8 {[%clk 0:03:02]} 12. Bf4 {[%clk 0:02:56]}  Bf8 {[%clk 0:03:02]} 13. d5 {[%clk 0:02:54]}  Rxe1+ {[%clk 0:03:01]} 14. Qxe1 {[%clk 0:02:54]}  g6 {[%clk 0:03:01]} 15. Qd2 {[%clk 0:02:54]}  Bg7 {[%clk 0:03:01]} 16. Re1 {[%clk 0:02:54]}  Qf8 {[%clk 0:02:54]} 17. Nb5 {[%clk 0:02:54]}  a6 {[%clk 0:02:47]} 18. Nc3 {[%clk 0:01:58]}  Re8 {[%clk 0:02:46]} 19. Rd1 {[%clk 0:01:56]}  Nc5 {[%clk 0:02:41]} 20. Bc2 {[%clk 0:01:54]}  Nfe4 {[%clk 0:02:38]} 21. Nxe4 {[%clk 0:01:54]}  Nxe4 {[%clk 0:02:39]} 22. Qc1 {[%clk 0:01:55]}  Nc5 {[%clk 0:02:18]} 23. b4 {[%clk 0:01:50]}  Ne4 {[%clk 0:02:18]} 24. Bxe4 {[%clk 0:01:44]}  Rxe4 {[%clk 0:02:17]} 25. c5 {[%clk 0:01:45]}  Rxb4 {[%clk 0:01:47]} 26. cxd6 {[%clk 0:01:39]}  cxd6 {[%clk 0:01:48]} 27. Qc7 {[%clk 0:01:40]}  Rxf4 {[%clk 0:01:28]} 28. Qxb7 {[%clk 0:01:39]}  b5 {[%clk 0:01:23]} 29. Qxa6 {[%clk 0:01:36]}  Ra4 {[%clk 0:01:21]} 30. Qxb5 {[%clk 0:01:28]}  Rxa2 {[%clk 0:01:22]} 31. Re1 {[%clk 0:01:28]}  Ra8 {[%clk 0:01:20]} 32. g3 {[%clk 0:01:27]}  Bf6 {[%clk 0:01:17]} 33. Kg2 {[%clk 0:01:27]}  Kg7 {[%clk 0:01:16]} 34. Rb1 {[%clk 0:01:18]}  Qc8 {[%clk 0:01:12]} 35. Rb4 {[%clk 0:00:56]}  Ra2 {[%clk 0:01:03]} 36. Rc4 {[%clk 0:00:46]}  Qa8 {[%clk 0:00:58]} 37. Rc7 {[%clk 0:00:41]}  Ra7 {[%clk 0:00:42]} 38. Rc6 {[%clk 0:00:24]}  Ra5 {[%clk 0:00:41]} 39. Qc4 {[%clk 0:00:23]}  Ra4 {[%clk 0:00:38]} 40. Qd3 {[%clk 0:00:23]}  Qb8 {[%clk 0:00:34]} 41. h4 {[%clk 0:00:23]}  h5 {[%clk 0:00:29]} 42. Qe3 {[%clk 0:00:21]}  Ra5 {[%clk 0:00:20]} 43. Qe4 {[%clk 0:00:19]}  Ra2 {[%clk 0:00:20]} 44. Qe3 {[%clk 0:00:17]}  Ra5 {[%clk 0:00:19]} 45. Qe4 {[%clk 0:00:09]}  Ra2 {[%clk 0:00:17]} 46. Ne1 {[%clk 0:00:10]}  Ra5 {[%clk 0:00:11]} 47. Nd3 {[%clk 0:00:10]}  Rb5 {[%clk 0:00:09]} 48. Qf3 {[%clk 0:00:09]}  Ra5 {[%clk 0:00:08]} 49. Nf4 {[%clk 0:00:09]}  Be5 {[%clk 0:00:08]} 50. Nh3 {[%clk 0:00:09]}  Qb7 {[%clk 0:00:07]} 51. Ng5 {[%clk 0:00:08]}  Qe7 {[%clk 0:00:07]} 52. Rc4 {[%clk 0:00:07]}  Ra7 {[%clk 0:00:06]} 53. Rc8 {[%clk 0:00:06]}  Qf6 {[%clk 0:00:05]} 54. Qe4 {[%clk 0:00:05]}  Qe7 {[%clk 0:00:04]} 55. Nf3 {[%clk 0:00:05]}  Bf6 {[%clk 0:00:04]} 56. Qf4 {[%clk 0:00:06]}  Qd7 {[%clk 0:00:04]} 57. Rc6 {[%clk 0:00:06]}  Be7 {[%clk 0:00:04]} 58. Ng5 {[%clk 0:00:06]}  Bxg5 {[%clk 0:00:04]} 59. hxg5 {[%clk 0:00:07]}  Ra5 {[%clk 0:00:02]} 60. Qf6+ {[%clk 0:00:07]}  Kh7 {[%clk 0:00:02]} 61. Rxd6 {[%clk 0:00:07]}  Qb7 {[%clk 0:00:02]} 62. Rd8 {[%clk 0:00:07]}  Ra8 {[%clk 0:00:01]} 63. Qh8# {[%clk 0:00:07]} 1-0


[Site "https://www.chess.com"]